[Event "Czech Open Rapid G1 2024"]
[Site "Pardubice"]
[Date "2024.07.18"]
[Round "5.2"]
[White "Kusa, Jakub"]
[Black "Movsesian, Sergei"]
[Result "0-1"]
[Annotator "TA"]
[ECO "E01"]
[WhiteElo "2423"]
[BlackElo "2618"]
[PlyCount "144"]
[EventDate "2024.07.16"]
[EventType "swiss"]
[EventCountry "CZE"]
[SourceTitle "playchess.com"]
[Source "ChessBase"]
[SourceQuality "1"]
[TimeControl "1200+10"]

{[%evp 65,144,0,0,0,0,-2,-2,-2,93,-10,16,27,29,0,0,-9,-8,-8,-6,-46,-43,-251,-222,-723,-216,-202,-159,-272,-266,-270,-272,-268,-272,-543,-533,-526,-526,-580,-297,-308,-309,-312,-310,-309,-316,-313,-312,-316,-316,-316,-310,-347,-345,-299,-268,-460,-445,-422,-382,-569,-333,-318,-290,-485,-414,-629,-586,-789,-789,-1110,-660,-1120,-1113,-725,-601,-1035,-979,-3450,-2847,-1864,-1586]} 1. d4 {[%emt 0:00:03]} Nf6 {[%emt 0:00:03]} 2. Nf3 {[%emt 0:00:02]} d5 {[%emt 0:00:39]} 3. c4 {[%emt 0:00:14]} e6 {[%emt 0:00:02]} 4. g3 {[%emt 0:00:02]} a6 {[%emt 0:00:01]} 5. Nbd2 {[%emt 0:00:47]} c5 {[%emt 0:00:30]} 6. cxd5 {[%emt 0:00:44]} exd5 {[%emt 0:00:48]} 7. Bg2 {[%emt 0:00:20]} Nc6 {[%emt 0:00:04]} 8. O-O {[%emt 0:00:12]} h6 {[%emt 0:00:20]} 9. a3 {[%emt 0:02:16]} Be6 {[%emt 0:01:53]} 10. dxc5 {[%emt 0:00:22]} Bxc5 {[%emt 0:00:04]} 11. b4 {[%emt 0:00:01]} Bb6 {[%emt 0:00:34]} 12. Bb2 {[%emt 0:00:10]} O-O {[%emt 0:00:06]} 13. Rc1 {[%emt 0:00:19]} Re8 {[%emt 0:01:12]} 14. Nb3 {[%emt 0:00:25]} Ne4 {[%emt 0:00:14]} 15. Nbd4 {[%emt 0:01:08]} Rc8 {[%emt 0:01:01]} 16. Nxe6 {[%emt 0:00:58]} fxe6 {[%emt 0:00:05]} 17. e3 {[%emt 0:01:06]} Rf8 {[%emt 0:02:17]} 18. Qe2 {[%emt 0:02:09]} Nd6 {[%emt 0:01:21]} 19. Nd2 {[%emt 0:01:27]} Rc7 {[%emt 0:04:51]} 20. Nb3 {[%emt 0:04:33]} Nc4 {[%emt 0:01:09]} 21. Bd4 {[%emt 0:00:01]} Bxd4 {[%emt 0:00:41]} 22. Nxd4 {[%emt 0:00:01]} Nxd4 {[%emt 0:00:21]} 23. exd4 {[%emt 0:00:03]} Qf6 {[%emt 0:00:02]} 24. Rc3 {[%emt 0:02:29]} Rc6 {[%emt 0:01:52]} 25. Rd1 {[%emt 0:00:15]} b5 {[%emt 0:00:02]} 26. Rf3 {[%emt 0:00:51]} Qe7 {[%emt 0:00:38]} 27. Rc3 {[%emt 0:00:39]} Rd6 {[%emt 0:00:48]} 28. Re1 {[%emt 0:00:22]} Qf6 {[%emt 0:00:06]} 29. Rd3 {[%emt 0:00:01]} Rf7 {[%emt 0:00:23]} 30. Bh3 {[%emt 0:01:03]} Re7 {[%emt 0:00:10]} 31. f4 {[%emt 0:00:01]} Kh8 {[%emt 0:00:07]} 32. Kh1 {[%emt 0:00:19]} Rc6 {[%emt 0:00:04]} 33. Qh5 {[%emt 0:01:18]} Nd6 {[%emt 0:00:25]} 34. Rde3 {[%emt 0:00:43]} Qxd4 {[%emt 0:01:35]} 35. Rxe6 {[%emt 0:00:23]} Rxe6 {[%emt 0:00:01]} 36. Bxe6 {[%emt 0:00:01]} Qd2 {[%emt 0:00:12]} (36... Qf2 $11 {remains equal.} 37. Qe2 Qxe2 38. Rxe2 d4) 37. Qe2 {[%emt 0:00:09]} (37. Rd1 $16 Qe3 (37... Rc1 38. Rxc1 Qxc1+ 39. Kg2 $16) 38. Qxd5 (38. Bxd5 Rc1 $16)) 37... Rc2 {[%emt 0:00:05]} 38. Qxd2 Rxd2 {[%emt 0:00:01]} 39. Rc1 {[%emt 0:00:15]} Nc4 {[%emt 0:00:14]} 40. Bf5 {[%emt 0:00:22]} g5 {[%emt 0:00:09]} (40... Nxa3 41. Rc8#) 41. fxg5 {[%emt 0:00:10]} hxg5 {[%emt 0:00:02]} 42. Re1 {[%emt 0:00:00]} d4 {[%emt 0:00:10]} 43. Re8+ $2 {[%emt 0:00:21]} ({Better is} 43. h4 $15) 43... Kg7 $19 {[%emt 0:00:01]} 44. h4 $2 {[%emt 0:00:05]} (44. Bg4) 44... gxh4 $2 {[%emt 0:00:58]} (44... Nxa3 45. hxg5 Nc2 46. g6 Rd1+ 47. Kh2 $11) (44... Nd6 45. Re7+ Kf6 46. Re6+ Kxf5 47. Rxd6 Kg4) 45. gxh4 $19 {[%emt 0:00:14]} d3 {[%emt 0:00:09]} (45... Nxa3 46. Ra8 $15) 46. Re6 {[%emt 0:00:10] [#]} (46. Re1 $17) 46... Rd1+ $1 $19 {[%emt 0:00:08]} (46... Nxa3 47. h5 Rf2 48. Rg6+ (48. Bxd3 Rf6 $11) 48... Kh8 49. Bxd3 $11) 47. Kh2 {[%emt 0:00:08]} d2 {[%emt 0:00:01]} (47... Nxa3 $2 48. h5 Kf7 49. h6 Rd2+ 50. Kg3 $18) 48. Bg4 {[%emt 0:00:05]} Rf1 {[%emt 0:00:16]} 49. Rxa6 $2 {[%emt 0:00:18]} (49. Re7+ Kf8 50. Rd7) 49... Rf4 $19 {[%emt 0:00:02]} (49... d1=R 50. Bxd1 Rxd1 51. a4 $15) 50. Bd1 {[%emt 0:00:06]} Ne3 {[%emt 0:00:05]} 51. Bb3 {[%emt 0:00:08]} Rf3 {[%emt 0:00:07]} (51... d1=B 52. Ra7+ Kh6 53. Bxd1 Nxd1 54. Kg3 $17) (51... d1=N 52. Kg3 Rg4+ 53. Kf3 Rxh4 54. Ra8 $19) (51... d1=Q 52. Bxd1 Nxd1 53. a4 $15) 52. Rd6 {[%emt 0:00:05]} Ng4+ {[%emt 0:00:12]} 53. Kg1 {[%emt 0:00:13]} Rxb3 {[%emt 0:00:22]} 54. Rxd2 {[%emt 0:00:01]} Rg3+ {[%emt 0:00:21]} ({Less strong is} 54... Rxa3 55. Rd7+ Kh6 56. Rb7 $17) 55. Kf1 {[%emt 0:00:11]} Rxa3 {[%emt 0:00:02]} 56. Rd7+ {[%emt 0:00:02]} Kf6 {[%emt 0:00:06]} 57. Rb7 {[%emt 0:00:15] [#]} Rf3+ $1 {[%emt 0:00:11]} 58. Ke2 {[%emt 0:00:03]} Rf5 {[%emt 0:00:07]} 59. Kd3 {[%emt 0:00:10]} Ke6 {[%emt 0:00:18]} 60. Kd4 $2 {[%emt 0:00:25]} (60. Rb6+ Ke7 61. Ke4) 60... Rd5+ $19 {[%emt 0:00:04]} 61. Ke4 {[%emt 0:00:06]} Nf6+ {[%emt 0:00:02]} 62. Kf4 {[%emt 0:00:00]} (62. Ke3 $142) 62... Rf5+ {[%emt 0:00:08]} 63. Kg3 {[%emt 0:00:07]} Nd7 {[%emt 0:00:12]} 64. Kg4 $2 {[%emt 0:00:17]} (64. Ra7) 64... Rd5 $19 {[%emt 0:00:01]} 65. Rc7 {[%emt 0:00:12]} (65. Kf4 $142) 65... Kd6 {[%emt 0:00:19]} 66. Rc3 {[%emt 0:00:15]} Nf6+ {[%emt 0:00:11]} 67. Kf4 {[%emt 0:00:24]} Rh5 {[%emt 0:00:55]} 68. Rd3+ {[%emt 0:00:01]} Ke6 {[%emt 0:00:08]} 69. Re3+ {[%emt 0:00:21]} Kd5 {[%emt 0:00:03]} 70. Kg3 {[%emt 0:00:11]} Kc4 {[%emt 0:00:08]} 71. Re6 {[%emt 0:00:10]} Rh6 {[%emt 0:00:13]} 72. Kf3 {[%emt 0:00:11]} Kxb4 {[%emt 0:00:05]} 0-1

[Event "Czech Open Rapid G1 2024"]
[Site "Pardubice"]
[Date "2024.07.18"]
[Round "5.3"]
[White "Movsesian, Julia"]
[Black "Jirka, Jiri"]
[Result "1/2-1/2"]
[Annotator "TA"]
[ECO "C60"]
[WhiteElo "2202"]
[BlackElo "2387"]
[PlyCount "247"]
[EventDate "2024.07.16"]
[EventType "swiss"]
[EventCountry "CZE"]
[SourceTitle "playchess.com"]
[Source "ChessBase"]
[SourceQuality "1"]
[TimeControl "1200+10"]

{[%evp 14,247,20,40,34,31,23,24,23,15,33,39,97,22,47,29,58,65,56,62,100,69,107,28,53,17,35,-19,-18,-116,-124,-108,-32,-95,-77,-133,-71,-174,0,-8,0,0,0,0,0,0,0,0,0,0,0,0,0,0,0,0,0,0,18,13,23,0,0,-8,-8,-129,-122,-122,-95,-123,-12,-16,-8,-8,-8,-17,8,2,8,8,6,0,0,0,0,-41,-43,-54,-15,-15,-13,-30,-30,-78,-70,-129,-69,-71,-8,-8,-8,-79,-90,-603,-603,-603,-603,-603,-603,-603,-603,-603,-603,-603,-603,-603,-603,-603,-603,-603,-603,-603,-603,-603,-603,-603,-603,-603,-603,-603,-603,-603,-603,-603,-603,-603,0,-603,-603,-603,-603,-603,-603,-603,-603,-603,-603,-603,-603,-603,-596,-1114,-603,-603,-603,-603,-603,-603,-603,-603,-603,-603,-603,-603,-603,-603,0,-603,0,-603,-603,-603,-603,-603,-603,-603,0,-603,0,-583,-603,-603,-603,-549,-531,-532,-533,-533,-525,-525,-8,-8,-8,-8,-8,-8,-8,-8,0,-8,0,-8,-8,-8,-8,-8,-8,-8,-8,-8,-8,-8,-8,-8,-8,-8,-8,-8,-8,-8,-8,-8,-8,-8,-8,-8,0,-8,0,-8,0,-8,-8,-8,-8,-8]} 1. e4 {[%emt 0:00:01]} e5 {[%emt 0:00:01]} 2. Nf3 {[%emt 0:00:01]} Nc6 {[%emt 0:00:01]} 3. Bb5 {[%emt 0:00:01][%cal Bf1b5,Bb5a4,Ba4c2][%mdl 32]} a6 {[%emt 0:00:01]} 4. Ba4 {[%emt 0:00:02]} Nge7 {[%emt 0:00:02]} 5. c3 {[%emt 0:00:02]} g6 {[%emt 0:00:01]} 6. O-O {[%emt 0:00:05]} Bg7 {[%emt 0:00:01]} 7. d4 {[%emt 0:00:01]} exd4 {[%emt 0:00:02]} 8. cxd4 {[%emt 0:00:01]} b5 {[%emt 0:00:11]} 9. Bc2 {[%emt 0:00:05]} O-O {[%emt 0:00:04]} 10. h3 {[%emt 0:00:16]} d5 {[%emt 0:04:04] White has an edge.} 11. e5 {[%emt 0:00:11]} Bf5 {[%emt 0:00:14]} 12. Bg5 {[%emt 0:01:25] Strongly threatening Bxf5.} h6 {[%emt 0:00:46]} (12... f6 $14 13. Bxf6 Bxf6) 13. Be3 {[%emt 0:00:50]} (13. Bxf5 $16 hxg5 14. Bg4) 13... Qd7 {[%emt 0:00:35]} 14. Nbd2 {[%emt 0:00:11]} Nd8 {[%emt 0:04:53]} 15. Nb3 {[%emt 0:02:40]} Ne6 {[%emt 0:00:02]} 16. Rc1 {[%emt 0:00:30]} Rac8 {[%emt 0:00:23]} 17. Qd2 {[%emt 0:00:22]} g5 {[%emt 0:00:55]} 18. Qa5 {[%emt 0:00:58]} (18. Bxf5 $16 Nxf5 19. Qd3) 18... c6 {[%emt 0:02:19]} 19. Ne1 {[%emt 0:01:02]} (19. Qxa6 $2 Ra8 20. Qb6 Rfb8 $19) 19... c5 {[%emt 0:01:48]} 20. dxc5 {[%emt 0:01:50]} (20. Bxf5 $14 Nxf5 21. Nxc5 (21. Qxa6 $2 Ra8 $19) 21... Nxc5 22. dxc5 (22. Rxc5 Rxc5 23. dxc5 Bxe5 $14)) 20... Bxc2 {[%emt 0:03:09]} 21. Rxc2 {[%emt 0:01:04]} (21. Nxc2 $11 {remains equal.} Bxe5 22. Ncd4) 21... Nc6 $17 {[%emt 0:00:02]} 22. Qd2 {[%emt 0:01:09]} Nxe5 {[%emt 0:01:00]} (22... d4 $1 $17 23. f4 Rfd8) 23. Nd3 {[%emt 0:04:59]} (23. Bd4 $15) 23... Nc4 {[%emt 0:00:43]} 24. Qe2 {[%emt 0:00:10]} (24. Qe1 $142) 24... f5 {[%emt 0:01:18]} ({Black should play} 24... a5 $1 25. Rd1 f5) 25. Bc1 {[%emt 0:00:20] [#]} (25. Nb4 $2 f4 26. c6 Qd6 $19) (25. Bd2 $17) 25... f4 $2 {[%emt 0:00:20]} (25... a5 $1 $19 26. f4 a4) 26. Re1 {[%emt 0:00:08]} Rfe8 {[%emt 0:01:07] White must now prevent ...Nd4.} 27. Qf3 {[%emt 0:00:10]} Nc7 {[%emt 0:00:19]} 28. Rce2 {[%emt 0:00:24]} Rxe2 {[%emt 0:00:02]} 29. Rxe2 {[%emt 0:00:01]} Re8 {[%emt 0:00:01]} 30. h4 {[%emt 0:00:18]} Rxe2 {[%emt 0:00:17]} 31. Qxe2 {[%emt 0:00:02]} Qe6 {[%emt 0:00:02]} 32. Qxe6+ {[%emt 0:00:27]} Nxe6 {[%emt 0:00:01]} 33. hxg5 {[%emt 0:00:02]} hxg5 {[%emt 0:00:00]} 34. c6 {[%emt 0:00:00]} Kf7 {[%emt 0:00:10]} 35. Nbc5 {[%emt 0:00:08]} Nc7 {[%emt 0:00:01]} 36. g3 {[%emt 0:00:09]} fxg3 {[%emt 0:00:10]} 37. Bxg5 {[%emt 0:00:14]} Bd4 {[%emt 0:00:01]} (37... Bxb2 $6 38. Nxb2 gxf2+ 39. Kxf2 Nxb2 40. Bf4 $16) (37... Nxb2 38. fxg3 Nxd3 39. Nxd3) 38. Nb3 {[%emt 0:00:55]} gxf2+ {[%emt 0:00:20]} 39. Nxf2 {[%emt 0:00:01]} (39. Kg2 $11 Nxb2 (39... Bxb2 40. Bd8 $11) 40. Nxb2 Bxb2 41. Bf4) 39... Bxb2 {[%emt 0:00:03]} 40. Nd3 {[%emt 0:00:03]} Ne6 {[%emt 0:00:21]} 41. Bh4 {[%emt 0:00:09]} Bf6 {[%emt 0:00:23]} (41... Ba3 $17 {...Bd6 would now be deadly.} 42. Bg3 Ke7) 42. Bg3 $11 {[%emt 0:00:07]} Bd8 {[%emt 0:00:05] White should prevent ...a5.} 43. Nb4 {[%emt 0:00:01][%csl LRa6,LRd5]} Bb6+ {[%emt 0:00:10]} 44. Kh1 {[%emt 0:00:43]} a5 {[%emt 0:00:12]} 45. Nxd5 {[%emt 0:00:01]} a4 {[%emt 0:00:02]} 46. Nc1 {[%emt 0:00:24]} Ke8 {[%emt 0:00:31]} 47. Nd3 {[%emt 0:00:10]} Kd8 {[%emt 0:00:10]} 48. Nc3 {[%emt 0:00:09]} Nd4 {[%emt 0:00:09][%cal Ob6a5]} 49. Nd5 {[%emt 0:00:12]} Nxc6 {[%emt 0:00:07]} 50. Nc3 {[%emt 0:00:14]} Nd4 {[%emt 0:00:15]} 51. Bf2 {[%emt 0:00:01]} Nd6 {[%emt 0:00:17]} 52. Nd5 {[%emt 0:00:23]} Ba7 {[%emt 0:00:05]} 53. N3b4 {[%emt 0:00:01]} (53. Nc3 $1 $11) 53... Kc8 {[%emt 0:00:20]} 54. Nd3 {[%emt 0:01:36]} (54. Nc3 $15) 54... Kb7 {[%emt 0:00:04]} (54... Ne4 $17 {Threatens to win with ...Nxf2+.} 55. Kg2 Nxf2 56. Kxf2 Nc6+ 57. Kf3 Bd4) 55. Nc3 $1 $15 {[%emt 0:00:35]} Nc6 {[%emt 0:00:24]} (55... Ne6 $17 {aiming for ...Bxf2.} 56. Kg2 Bd4 57. Bxd4 Nxd4) 56. Bxa7 $11 {[%emt 0:00:26]} Kxa7 {[%emt 0:00:03][%mdl 4096] Endgame. KNN-KNN} 57. Nb2 {[%emt 0:00:01] [#]} (57. Nc5 $1 $11) 57... a3 $1 $17 {[%emt 0:00:11]} 58. Nxb5+ $2 {[%emt 0:00:01][%mdl 8192]} Nxb5 $19 {[%emt 0:00:03]} 59. Nc4 {[%emt 0:00:00]} Ka6 {[%emt 0:00:04]} 60. Kg2 {[%emt 0:00:09]} Nb4 {[%emt 0:00:04]} 61. Kf2 {[%emt 0:00:06]} Kb7 {[%emt 0:00:04]} (61... Nxa2 62. Nxa3 Nd6 (62... Nxa3 63. Kg3 $11) 63. Ke2 $11) 62. Ke3 {[%emt 0:00:21]} Kc6 {[%emt 0:00:01]} (62... Nxa2 63. Nxa3 Nc7 (63... Nxa3 64. Kf4 $11) 64. Nb5 $11) 63. Nxa3 {[%emt 0:00:01]} Nxa3 {[%emt 0:00:01]} 64. Ke4 {[%emt 0:00:00]} Kc5 {[%emt 0:00:02]} (64... Nxa2 65. Kf5 $11) 65. Ke5 {[%emt 0:00:01]} Nd3+ {[%emt 0:00:08]} (65... Nxa2 66. Kf6 $11) 66. Ke4 {[%emt 0:00:01]} Kc4 {[%emt 0:00:01]} 67. Ke3 {[%emt 0:00:07]} Nc5 {[%emt 0:00:01]} 68. Kf4 {[%emt 0:00:01]} Kd5 {[%emt 0:00:05]} 69. Kf5 {[%emt 0:00:01]} Ne4 {[%emt 0:00:02]} 70. Kf4 {[%emt 0:00:01]} Nd6 {[%emt 0:00:02]} 71. Ke3 {[%emt 0:00:01]} Ke5 {[%emt 0:00:06]} 72. Kf3 {[%emt 0:00:02]} Ndc4 {[%emt 0:00:03]} 73. Kg4 {[%emt 0:00:02]} Ke4 {[%emt 0:00:03]} 74. Kg5 {[%emt 0:00:01]} Ke5 {[%emt 0:00:05]} 75. Kg4 $1 {[%emt 0:00:01]} Ne3+ {[%emt 0:00:03]} 76. Kf3 {[%emt 0:00:01]} Nd5 {[%emt 0:00:01]} 77. Kg4 {[%emt 0:00:02]} Nf6+ {[%emt 0:00:01]} 78. Kf3 {[%emt 0:00:01]} Kf5 {[%emt 0:00:06]} 79. Ke3 {[%emt 0:00:01]} Nd5+ {[%emt 0:00:07]} 80. Kd4 {[%emt 0:00:01]} Nc7 {[%emt 0:00:01]} 81. Kc5 {[%emt 0:00:02]} Ke5 {[%emt 0:00:02]} 82. Kc6 {[%emt 0:00:01]} Ncb5 {[%emt 0:00:01]} 83. Kc5 {[%emt 0:00:01]} Nd6 {[%emt 0:00:03]} 84. Kc6 {[%emt 0:00:01]} Ndc4 {[%emt 0:00:02]} 85. Kc5 {[%emt 0:00:01]} Ke4 {[%emt 0:00:03]} 86. Kc6 {[%emt 0:00:01]} Kd4 {[%emt 0:00:04]} 87. Kd7 {[%emt 0:00:01]} Kd5 {[%emt 0:00:09]} 88. Ke7 {[%emt 0:00:01]} Ke5 {[%emt 0:00:01]} 89. Kd7 {[%emt 0:00:00]} Kd5 {[%emt 0:00:07]} 90. Ke7 {[%emt 0:00:01]} Ke5 {[%emt 0:00:07]} 91. Kd7 {[%emt 0:00:04]} Nb6+ {[%emt 0:00:01]} 92. Kc6 {[%emt 0:00:01]} Nd5 {[%emt 0:00:03]} 93. Kc5 {[%emt 0:00:01]} Ne3 {[%emt 0:00:07]} 94. Kc6 {[%emt 0:00:01]} Nec4 $2 {[%emt 0:00:03]} ({Black should try} 94... Kd4 $19 95. Kd6 Nf5+ 96. Ke6 Ke4) 95. Kc5 $2 {[%emt 0:00:01][%mdl 8192]} (95. Kd7 $11 Na5 96. Ke7) 95... Nd6 {[%emt 0:00:07]} 96. Kc6 $1 {[%emt 0:00:01]} Ne4 {[%emt 0:00:12]} 97. Kd7 {[%emt 0:00:02]} Nc5+ {[%emt 0:00:15]} 98. Kc6 {[%emt 0:00:04]} Kd4 {[%emt 0:00:03]} 99. Kd6 {[%emt 0:00:01]} Nb5+ {[%emt 0:00:07]} 100. Kc6 {[%emt 0:00:01]} Kc4 {[%emt 0:00:07]} 101. a4 {[%emt 0:00:00][%cal Ba2a4,Ba4a5,Ba5a6,Ba6a7][%mdl 32]} Nd4+ $2 {[%emt 0:00:06]} ({Inferior is} 101... Nxa4 102. Kd7 $11) (101... Na7+ $19 102. Kc7 Kd5 (102... Nxa4 103. Kd8 $11) (102... Kb4 103. Kb6 $11)) 102. Kb6 $11 {[%emt 0:00:01] The position is equal.} Kd5 {[%emt 0:00:10]} 103. a5 {[%emt 0:00:03]} Kd6 {[%emt 0:00:06]} 104. a6 {[%emt 0:00:01]} Nd7+ {[%emt 0:00:13]} 105. Kb7 {[%emt 0:00:07]} Nc5+ {[%emt 0:03:41]} 106. Kb6 {[%emt 0:00:03]} Nd7+ {[%emt 0:00:16]} 107. Kb7 {[%emt 0:00:01]} Ne6 {[%emt 0:00:03]} 108. a7 {[%emt 0:00:10]} Nec5+ {[%emt 0:00:02]} 109. Ka8 {[%emt 0:00:09]} Ne5 {[%emt 0:00:58]} 110. Kb8 {[%emt 0:00:08]} Nc6+ {[%emt 0:00:15]} 111. Kc8 {[%emt 0:00:02]} Nxa7+ {[%emt 0:00:19]} 112. Kb8 {[%emt 0:00:02]} Nb5 {[%emt 0:00:08]} 113. Ka8 {[%emt 0:00:15]} Kd7 {[%emt 0:00:03]} 114. Kb8 {[%emt 0:00:01]} Kc6 {[%emt 0:00:05]} 115. Kc8 {[%emt 0:00:24]} Ne6 {[%emt 0:00:02][%cal Bc5e6,Be6c7,Bc7a6][%mdl 32]} 116. Kb8 {[%emt 0:00:01]} Nd6 {[%emt 0:00:03]} 117. Ka7 {[%emt 0:00:01]} Nc7 {[%emt 0:00:03]} 118. Kb8 {[%emt 0:00:07]} Na6+ {[%emt 0:00:03]} 119. Ka7 {[%emt 0:00:02]} Kb5 {[%emt 0:00:01]} (119... Nc4 $5) 120. Ka8 {[%emt 0:00:01]} Kc6 {[%emt 0:00:20]} 121. Ka7 {[%emt 0:00:03]} Nc7 {[%emt 0:00:03]} 122. Kb8 {[%emt 0:00:01]} Kd7 {[%emt 0:00:14]} 123. Ka7 {[%emt 0:00:02]} Nc4 {[%emt 0:00:00]} 124. Kb7 {[%emt 0:00:02] Whites escaped into a draw.   Weighted Error Value: White=0.36/Black=0.21 (precise) .  Loses game:     	White=1     	---        Missed win:     	---       	Black=2      Mistake:       	White=11    	Black=6      Inaccurate:     	White=3     	Black=4      OK:         	White=21    	Black=23     Best:        	White=10    	Black=4      Strong:       	White=2     	Black=1} 1/2-1/2

[Event "Czech Open Rapid G1 2024"]
[Site "Pardubice"]
[Date "2024.07.18"]
[Round "5.4"]
[White "Neuman, Petr"]
[Black "Abdulov, Orkhan"]
[Result "1/2-1/2"]
[Annotator "TA"]
[ECO "B21"]
[WhiteElo "2441"]
[BlackElo "2382"]
[PlyCount "50"]
[EventDate "2024.07.16"]
[EventType "swiss"]
[EventCountry "CZE"]
[SourceTitle "playchess.com"]
[Source "ChessBase"]
[SourceQuality "1"]
[TimeControl "1200+10"]

{[%evp 9,50,22,23,0,0,0,0,0,0,0,0,0,0,0,0,0,0,-30,-28,-19,49,56,54,45,72,52,74,52,91,83,68,54,47,54,33,14,10,16,0,0,0,0,0]} 1. e4 {[%emt 0:00:01]} c5 {[%emt 0:00:05]} 2. Be2 {[%emt 0:00:03]} Nc6 {[%emt 0:00:12]} 3. f4 {[%emt 0:00:02]} d5 {[%emt 0:01:33]} 4. d3 {[%emt 0:00:02]} e5 {[%emt 0:00:46]} 5. exd5 {[%emt 0:02:33]} Qxd5 {[%emt 0:00:03]} 6. Nf3 {[%emt 0:00:02]} exf4 {[%emt 0:03:00]} 7. Bxf4 {[%emt 0:00:03] Black must now prevent Nc3.} Nf6 {[%emt 0:00:34]} 8. O-O {[%emt 0:03:30]} Be7 {[%emt 0:00:36]} 9. Nc3 {[%emt 0:00:02]} Qd8 {[%emt 0:00:20]} 10. Qd2 {[%emt 0:01:38]} O-O {[%emt 0:00:05]} 11. Rae1 {[%emt 0:00:02]} Nd5 {[%emt 0:01:10]} 12. Nxd5 {[%emt 0:00:40]} Qxd5 {[%emt 0:00:01]} 13. c4 {[%emt 0:01:23]} Qd8 {[%emt 0:00:39]} 14. Be3 {[%emt 0:00:04]} Nd4 {[%emt 0:01:43]} (14... Bg4 $11) 15. Nxd4 $14 {[%emt 0:00:24]} cxd4 {[%emt 0:00:02]} 16. Bf4 {[%emt 0:00:02]} Be6 {[%emt 0:00:34]} 17. Bf3 {[%emt 0:00:02]} Qd7 $1 {[%emt 0:00:04]} 18. Re2 {[%emt 0:00:47]} a5 {[%emt 0:01:08][%cal Ba7a5,Ba5a4][%mdl 32]} 19. a3 {[%emt 0:00:01] White is more active.} a4 {[%emt 0:00:08]} 20. Rfe1 {[%emt 0:00:04]} Rfe8 {[%emt 0:00:19]} 21. Re5 {[%emt 0:00:49]} Bd6 {[%emt 0:01:15]} 22. Rb5 {[%emt 0:00:22]} Bxf4 {[%emt 0:01:07] The position is equal.} 23. Qxf4 {[%emt 0:00:03]} Bxc4 $1 {[%emt 0:00:02]} 24. Rxe8+ {[%emt 0:00:46]} Qxe8 {[%emt 0:00:54]} 25. Re5 {[%emt 0:00:21]} (25. dxc4 $2 Qe1#) 25... Be6 {[%emt 0:00:03] Weighted Error Value: White=0.07 (flawless) /Black=0.10 (very precise) .  Mistake:       	---       	Black=1      Inaccurate:     	White=1     	Black=2      OK:         	White=8     	Black=9      Best:        	White=1     	Black=1      Strong:       	---       	Black=2} 1/2-1/2